bitfinex/quotes_SOLUSD_20241116
["timestamp","ask_amount","ask_price","bid_price","bid_amount"]
[1731759052990,0.1,218.56,218.45,23.902374]
[1731759053489,0.1,218.56,218.46,38.14571096]
[1731759054107,0.1,218.55,218.46,16.0211]
[1731759054287,0.1,218.56,218.46,16.0211]
[1731759054288,0.1,218.56,218.46,38.14571096]
[1731759055805,0.22549,218.58,218.46,38.14571096]
[1731759055996,0.1,218.55,218.46,38.14571096]
[1731759056198,0.09367462,218.58,218.46,38.14571096]
[1731759056714,20.0,218.62,218.48,22.12461096]
[1731759057209,0.09367462,218.62,218.48,22.12461096]
[1731759057412,0.09367462,218.62,218.52,22.12461096]
[1731759057615,2.2868,218.64,218.52,22.12461096]
[1731759058111,0.09367462,218.63,218.52,22.12461096]
[1731759058316,0.09367462,218.63,218.49,16.0189]
[1731759058489,2.38067462,218.63,218.49,16.0189]
[1731759058903,0.25098,218.62,218.49,16.0189]
[1731759059310,0.21916462,218.61,218.49,11.4421]
[1731759059490,0.09367462,218.55,218.44,11.4447]
[1731759059688,0.12549,218.54,218.44,11.4447]
[1731759059894,0.09367462,218.51,218.41,4.5784]
[1731759060409,0.09367462,218.51,218.41,11.4463]
[1731759060584,23.776884,218.58,218.41,11.4463]
[1731759060791,20.25098,218.57,218.41,11.4463]
[1731759061109,0.09367462,218.56,218.42,22.12461096]
[1731759061307,0.09367462,218.56,218.44,22.12461096]
[1731759061511,2.2874,218.58,218.44,22.12461096]
[1731759061809,2.2874,218.58,218.44,22.22461096]
[1731759062004,0.09367462,218.57,218.44,22.22461096]
[1731759062198,0.09367462,218.57,218.44,22.12461096]
[1731759062509,2.2868,218.64,218.46,22.12461096]
[1731759062712,2.2868,218.64,218.49,23.902374]
[1731759062904,2.2868,218.64,218.5,22.12461096]
[1731759063316,2.2868,218.64,218.48,23.776884]
[1731759063520,0.09367462,218.63,218.48,23.776884]
[1731759063699,2.2868,218.64,218.47,12.7382]
[1731759064024,24.12153862,218.63,218.45,16.0219]
[1731759064219,24.12153862,218.63,218.45,11.4442]
[1731759064220,24.12153862,218.59,218.45,11.4442]
[1731759064512,2.53788,218.63,218.45,11.5442]
[1731759064691,2.2866,218.67,218.54,22.12461096]
[1731759064893,2.2863,218.69,218.56,22.12461096]
[1731759065116,15.3622,218.71,218.58,22.12461096]
[1731759065293,13.0761,218.71,218.6,22.12461096]
[1731759065492,15.3613,218.79,218.61,20.0]
[1731759065799,15.3613,218.79,218.65,23.776884]
[1731759066111,2.2852,218.79,218.66,22.12461096]
[1731759066411,2.2846,218.85,218.67,23.902374]
[1731759066713,2.2846,218.85,218.68,16.005]
[1731759067012,2.2846,218.85,218.71,35.98740619]
[1731759068300,2.2846,218.85,218.72,16.0021]
[1731759068708,0.12549,218.86,218.73,55.86191619]
[1731759068890,0.25098,218.86,218.73,55.86191619]
[1731759069086,0.12549,218.86,218.73,55.86191619]
[1731759069291,2.284,218.91,218.76,20.0]
[1731759069887,2.284,218.91,218.74,23.902374]
[1731759070094,2.284,218.91,218.72,28.8403]
[1731759070095,2.384,218.91,218.72,11.4301]
[1731759070615,0.12549,218.9,218.72,11.4301]
[1731759070792,0.2,218.85,218.66,11.4331]
[1731759070995,0.21916462,218.84,218.66,16.0064]
[1731759071314,0.25098,218.83,218.69,35.86191619]
[1731759071496,0.12549,218.83,218.71,35.86191619]
[1731759071701,2.284,218.91,218.75,35.86191619]
[1731759071892,0.5269639,218.92,218.79,35.86191619]
[1731759072087,0.5269639,218.92,218.83,35.86191619]
[1731759072611,0.5269639,218.92,218.88,35.86191619]
[1731759073511,0.5269639,218.92,218.89,20.0]
[1731759073720,0.5269639,218.92,218.9,59.63880019]
[1731759073898,0.5269639,218.92,218.87,12.7382]
[1731759074101,0.5269639,218.92,218.82,15.9948]
[1731759074317,0.09367462,218.91,218.82,11.4249]
[1731759074504,0.09367462,218.91,218.8,4.5703]
[1731759074910,0.34465462,218.91,218.76,47.28981619]
[1731759075099,0.34465462,218.91,218.78,4.5707]
[1731759075623,0.34465462,218.91,218.78,24.5707]
[1731759075826,0.12549,218.91,218.78,24.5707]
[1731759076001,0.5269639,218.92,218.85,35.86191619]
[1731759077523,0.5269639,218.92,218.84,35.86191619]
[1731759078022,0.5269639,218.92,218.86,35.86191619]
[1731759078425,0.5269639,218.92,218.84,4.5694]
[1731759078612,0.12549,218.91,218.82,51.85631619]
[1731759079121,0.12549,218.85,218.76,11.4278]
[1731759079329,43.902374,218.87,218.73,4.5717]
[1731759079330,0.12549,218.83,218.73,4.5717]
[1731759080125,20.12549,218.9,218.76,35.86191619]
[1731759080302,2.8109639,218.92,218.8,35.86191619]
[1731759080503,0.5269639,218.92,218.84,35.86191619]
[1731759080905,0.5269639,218.92,218.82,79.63880019]
[1731759081908,0.5269639,218.92,218.83,4.5697]
[1731759082309,0.21916462,218.91,218.81,15.9955]
[1731759082614,0.21916462,218.89,218.81,11.4254]
[1731759082806,0.21916462,218.89,218.78,4.5706]
[1731759083410,0.21916462,218.89,218.78,40.43251619]
[1731759083933,0.5269639,218.92,218.86,35.86191619]
[1731759084848,0.5269639,218.92,218.86,20.0]
[1731759085313,0.5269639,218.92,218.87,23.776884]
[1731759085715,0.5269639,218.92,218.9,35.86191619]
[1731759085933,0.5269639,218.92,218.91,28.344884]
[1731759086117,0.5269639,218.92,218.91,48.344884]
[1731759086326,0.5269639,218.92,218.91,48.56404862]
[1731759086520,0.5269639,218.92,218.91,48.470374]
[1731759086720,0.5269639,218.92,218.91,48.344884]
[1731759087229,0.5269639,218.92,218.9,47.28261619]
[1731759087424,0.5269639,218.92,218.91,20.0]
[1731759088018,0.5269639,218.92,218.91,43.776884]
[1731759088324,0.5269639,218.92,218.91,44.12153862]
[1731759089168,0.5269639,218.92,218.91,43.902374]
[1731759090440,0.5269639,218.92,218.91,43.99604862]
[1731759090628,0.5269639,218.92,218.91,45.13461764]
[1731759090832,0.5269639,218.92,218.91,45.23461764]
[1731759091026,0.5269639,218.92,218.91,44.12153862]
[1731759091336,0.5269639,218.92,218.91,43.902374]
[1731759092424,0.5269639,218.92,218.91,44.027864]
[1731759092623,0.5269639,218.92,218.91,44.227864]
[1731759092830,0.5269639,219.14,219.0,0.12549]
[1731759093134,0.5269639,219.14,219.08,21.99722515]
[1731759093832,0.5269639,219.14,219.06,21.99722515]
[1731759094045,2.8085639,219.14,219.02,21.99722515]
[1731759094236,0.09367462,219.13,219.01,43.776884]
[1731759094537,0.12549,219.11,219.02,4.5657]
[1731759094742,0.5269639,219.14,219.08,45.77410915]
[1731759095040,0.5269639,219.14,219.08,59.50520572]
[1731759096331,0.5269639,219.14,219.11,20.0]
[1731759096533,0.5269639,219.14,219.12,23.776884]
[1731759096741,0.5269639,219.14,219.12,28.340484]
[1731759097036,0.5269639,219.14,219.12,64.06880572]
[1731759097930,0.5269639,219.14,219.13,43.776884]
[1731759099033,0.5269639,219.14,219.13,114.12153862]
[1731759099344,12.7452,219.32,219.13,114.12153862]
[1731759099345,2.2799,219.3,219.21,23.776884]
[1731759099546,2.2799,219.3,219.21,59.50520572]
[1731759099743,2.2799,219.3,219.23,35.72832172]
[1731759100043,12.7452,219.32,219.23,35.72832172]
[1731759100235,2.2798,219.32,219.22,20.0]
[1731759100619,2.2795,219.34,219.23,59.50520572]
[1731759101019,0.09367462,219.31,219.2,43.776884]
[1731759101219,0.09367462,219.31,219.18,24.5623]
[1731759101721,20.19367462,219.31,219.14,11.4082]
[1731759101924,20.09367462,219.29,219.14,11.4082]
[1731759102223,0.09367462,219.25,219.14,11.4082]
[1731759103842,0.09367462,219.25,219.12,4.5636]
[1731759103843,0.21916462,219.19,219.08,11.4111]
[1731759104349,0.21916462,219.21,219.08,11.4111]
[1731759104547,0.12549,219.2,219.08,11.4111]
[1731759104860,0.21916462,219.19,219.08,11.4111]
[1731759105143,0.21916462,219.19,219.09,23.776884]
[1731759105944,2.2812,219.18,219.09,23.776884]
[1731759106119,2.2808,219.22,219.11,23.776884]
[1731759106319,0.12549,219.21,219.11,23.776884]
[1731759106846,2.2808,219.22,219.13,59.50520572]
[1731759107024,15.4472,219.24,219.13,59.50520572]
[1731759107220,2.2806,219.24,219.16,23.776884]
[1731759107444,2.2796,219.33,219.24,20.0]
[1731759107627,13.1666,219.37,219.24,20.0]
[1731759107628,2.8063639,219.36,219.28,20.0]
[1731759108033,0.5269639,219.36,219.29,23.776884]
[1731759108231,0.5269639,219.36,219.29,59.50520572]
[1731759109926,2.8063639,219.36,219.21,23.776884]
[1731759110131,0.09367462,219.35,219.21,43.776884]
[1731759110653,0.09367462,219.35,219.21,20.0]
[1731759110945,0.09367462,219.33,219.22,4.5616]
[1731759112035,2.40499,219.34,219.2,11.405]
[1731759112036,0.34465462,219.31,219.2,11.405]
[1731759112231,0.34465462,219.31,219.15,35.72832172]
[1731759112432,0.34465462,219.31,219.15,11.4076]
[1731759113346,0.34465462,219.31,219.15,47.13592172]
[1731759113548,0.34465462,219.29,219.17,20.0]
[1731759114158,0.34465462,219.29,219.18,23.776884]
[1731759114541,20.34465462,219.27,219.12,4.5636]
[1731759115152,20.34465462,219.27,219.12,15.9728]
[1731759115347,20.21916462,219.27,219.15,35.72832172]
[1731759115949,0.21916462,219.27,219.17,35.72832172]
[1731759116136,2.2803,219.26,219.17,35.72832172]
[1731759116453,2.2795,219.34,219.2,43.776884]
[1731759117550,2.2795,219.34,219.21,35.72832172]
[1731759117745,22.2795,219.34,219.22,23.776884]
[1731759118056,2.2795,219.34,219.26,43.776884]
[1731759118256,2.2795,219.34,219.23,35.72832172]
[1731759118432,2.2795,219.34,219.2,15.967]
[1731759118433,2.2795,219.34,219.22,20.0]
[1731759118637,2.2795,219.34,219.24,20.0]
[1731759119153,2.2795,219.34,219.22,20.0]
[1731759119358,2.2795,219.34,219.24,20.0]
[1731759120055,0.09367462,219.33,219.22,23.776884]
[1731759120255,0.12549,219.33,219.24,23.776884]
[1731759120457,2.8062639,219.36,219.28,20.0]
[1731759120647,2.8062639,219.36,219.29,59.50520572]
[1731759121239,2.8062639,219.36,219.28,20.0]
[1731759121436,0.09367462,219.35,219.24,23.776884]
[1731759121667,0.09367462,219.35,219.25,20.0]
[1731759121845,0.09367462,219.35,219.24,23.776884]
[1731759122044,0.12549,219.34,219.23,23.776884]
[1731759122240,0.12549,219.34,219.24,20.0]
[1731759122945,0.12549,219.32,219.23,23.776884]
[1731759123274,0.12549,219.32,219.17,11.4065]
[1731759123275,0.09367462,219.29,219.17,11.4065]
[1731759123558,12.42367462,219.23,219.09,35.72832172]
[1731759123766,0.09367462,219.21,219.09,40.29252172]
[1731759124061,0.12549,219.2,219.07,51.70462172]
[1731759124262,0.21916462,219.21,219.02,82.9917]
[1731759124263,0.21916462,219.17,219.03,35.72832172]
[1731759124440,0.09367462,219.15,219.03,4.5655]
[1731759124636,0.09367462,219.11,219.01,15.9803]
[1731759125248,2.37567462,219.11,219.01,15.9803]
[1731759125446,20.0,219.19,219.03,35.72832172]
[1731759125744,2.2812,219.18,219.09,35.72832172]
[1731759126271,2.2812,219.18,219.1,20.0]
[1731759126564,34.4473,219.2,219.11,35.72832172]
[1731759126770,34.4473,219.2,219.12,23.776884]
[1731759126965,0.09367462,219.19,219.09,35.72832172]
[1731759127460,0.09367462,219.17,219.07,35.72832172]
[1731759127641,0.34465462,219.17,219.03,35.72832172]
[1731759127842,0.34465462,219.17,219.01,51.70862172]
[1731759128059,0.34465462,219.17,219.03,35.72832172]
[1731759128241,0.34465462,219.17,219.04,20.0]
[1731759128441,0.34465462,219.17,219.05,35.72832172]
[1731759128641,0.34465462,219.17,219.07,35.72832172]
[1731759128945,0.21916462,219.15,219.05,35.72832172]
[1731759129143,0.09367462,219.13,219.03,35.72832172]
[1731759129436,0.12549,219.15,219.03,35.72832172]
[1731759129640,0.12549,219.15,219.04,23.776884]
[1731759129837,0.21916462,219.14,219.03,35.72832172]
[1731759130143,0.12549,219.13,219.03,35.72832172]
[1731759130657,2.2818,219.12,219.04,20.0]
[1731759130854,0.21916462,219.11,219.01,47.14272172]
[1731759131365,0.21916462,219.11,218.99,35.72832172]
[1731759131562,0.21916462,219.09,218.95,47.14592172]
[1731759131760,0.09367462,219.05,218.95,47.14592172]
[1731759131967,0.21916462,219.05,218.95,47.14592172]
[1731759132148,20.0,219.08,218.95,47.14592172]
[1731759132463,0.12549,219.07,218.95,47.14592172]
[1731759132641,0.12549,219.05,218.95,47.14592172]
[1731759133054,0.12549,219.05,218.96,20.0]
[1731759133870,0.12549,219.01,218.91,35.72832172]
[1731759134164,0.09367462,219.0,218.89,15.9894]
[1731759134542,0.34465462,218.98,218.85,35.72832172]
[1731759134944,0.21916462,218.94,218.82,11.4247]
[1731759135273,0.09367462,218.92,218.82,11.4247]
[1731759135569,0.09367462,218.9,218.79,35.72832172]
[1731759135875,0.12549,218.87,218.76,11.4276]
[1731759136160,0.21916462,218.86,218.74,35.72832172]
[1731759136342,0.09367462,218.84,218.74,35.72832172]
[1731759136542,2.37847462,218.84,218.74,35.72832172]
[1731759136957,2.37847462,218.84,218.68,35.72832172]
[1731759136958,0.21916462,218.82,218.63,11.4347]
[1731759137163,0.12549,218.79,218.63,11.4347]
[1731759137352,0.31916462,218.8,218.62,35.72832172]
[1731759137353,0.12549,218.75,218.62,35.72832172]
[1731759137570,0.09367462,218.72,218.62,35.72832172]
[1731759137865,0.21916462,218.72,218.62,35.72832172]
[1731759138443,0.25098,218.82,218.7,35.72832172]
[1731759138674,2.2849,218.82,218.74,35.72832172]
[1731759138846,26.060984,218.9,218.78,35.72832172]
[1731759139054,26.060984,218.9,218.76,35.72832172]
[1731759139055,0.09367462,218.89,218.76,35.72832172]
[1731759139251,0.09367462,218.89,218.74,35.72832172]
[1731759139650,0.09367462,218.89,218.67,81.4325]
[1731759139651,0.09367462,218.89,218.72,35.72832172]
[1731759140168,0.09367462,218.84,218.68,35.72832172]
[1731759140470,0.09367462,218.8,218.68,55.72832172]
[1731759140677,0.09367462,218.78,218.68,55.72832172]
[1731759140850,0.21916462,218.78,218.68,55.72832172]
[1731759141057,0.21916462,218.78,218.71,20.0]
[1731759141244,0.1,218.89,218.71,20.0]
[1731759141245,5.7103,218.9,218.74,20.0]
[1731759141458,5.7103,218.9,218.76,20.0]
[1731759141658,8.1948,218.89,218.69,23.776884]
[1731759141860,0.09367462,218.86,218.7,20.0]
[1731759142059,0.09367462,218.84,218.68,11.4322]
[1731759142750,0.09367462,218.82,218.68,11.4322]
[1731759142946,0.25098,218.8,218.68,11.4322]
[1731759143473,0.09367462,218.79,218.69,20.0]
[1731759143649,0.09367462,218.79,218.61,70.0]
[1731759143650,20.09367462,218.79,218.62,47.16332172]
[1731759143977,0.09367462,218.77,218.62,47.16332172]
[1731759144475,0.09367462,218.77,218.66,35.72832172]
[1731759144853,0.09367462,218.77,218.67,48.349984]
[1731759145063,0.09367462,218.77,218.69,20.0]
[1731759145569,0.09367462,218.77,218.68,20.0]
[1731759145767,0.12549,218.76,218.68,20.0]
[1731759145967,0.12549,218.76,218.64,35.72832172]
[1731759145968,0.21916462,218.75,218.64,35.72832172]
[1731759146166,2.2856,218.77,218.64,35.72832172]
[1731759146455,2.2852,218.8,218.68,35.72832172]
[1731759146963,2.37897462,218.79,218.69,4.5726]
[1731759147163,2.37897462,218.79,218.68,35.72832172]
[1731759147359,2.37897462,218.79,218.69,20.0]
[1731759147565,2.2844,218.87,218.73,35.72832172]
[1731759147770,2.2844,218.87,218.74,55.72832172]
[1731759147956,0.09367462,218.86,218.72,35.72832172]
[1731759148162,0.09367462,218.86,218.71,20.0]
[1731759148355,0.09367462,218.82,218.65,20.0]
[1731759148557,0.09367462,218.8,218.62,11.4349]
[1731759148761,33.29637462,218.78,218.62,11.4349]
[1731759148983,0.09367462,218.76,218.62,11.4349]
[1731759149183,0.09367462,218.76,218.63,35.72832172]
[1731759149482,0.09367462,218.74,218.62,11.4349]
[1731759149658,0.09367462,218.74,218.62,16.009]
[1731759150253,0.09367462,218.74,218.63,35.72832172]
[1731759150454,2.2855,218.77,218.65,35.72832172]
[1731759150671,2.2855,218.77,218.68,20.0]
[1731759150876,33.2027,218.85,218.72,20.0]
[1731759151182,33.2027,218.85,218.76,20.0]
[1731759151481,15.2424,218.87,218.77,35.72832172]
[1731759151655,2.2839,218.92,218.81,35.72832172]
[1731759151851,33.2027,218.93,218.84,20.0]
[1731759152064,2.2837,218.94,218.86,20.0]
[1731759152269,2.2831,219.0,218.88,20.0]
[1731759152472,33.2027,219.01,218.91,35.72832172]
[1731759152672,35.4857,219.01,218.91,35.72832172]
[1731759152861,35.4857,219.01,218.8,0.1]
[1731759152862,35.4857,219.01,218.86,20.0]
[1731759153064,0.09367462,219.0,218.83,20.0]
[1731759153260,0.09367462,219.0,218.82,11.4248]
[1731759153261,0.09367462,218.98,218.8,20.0]
[1731759153669,41.2932,219.01,218.84,20.0]
[1731759153869,23.87055862,219.0,218.84,20.0]
[1731759154075,41.1932,219.01,218.86,20.0]
[1731759154678,0.09367462,219.0,218.84,20.0]
[1731759155063,0.09367462,219.0,218.85,59.50520572]
[1731759155375,2.283,219.01,218.91,35.72832172]
[1731759155580,2.283,219.01,218.94,20.0]
[1731759155774,2.283,219.01,218.93,35.72832172]
[1731759155775,2.2825,219.06,218.96,20.0]
[1731759156075,2.282,219.1,218.97,35.72832172]
[1731759156275,2.282,219.1,218.98,20.0]
[1731759156661,2.282,219.1,218.95,35.72832172]
[1731759157286,0.09367462,219.09,218.95,35.72832172]
[1731759157476,2.282,219.1,218.95,35.72832172]
[1731759157477,22.282,219.1,218.95,35.72832172]
[1731759157775,12.6927,219.11,218.95,35.72832172]
[1731759157776,0.09367462,219.06,218.95,35.72832172]
[1731759157969,0.09367462,219.06,218.93,35.72832172]
[1731759158166,20.25098,219.05,218.92,11.4196]
[1731759158479,20.34465462,218.96,218.8,11.4259]
[1731759158657,0.09367462,219.0,218.8,11.4259]
[1731759158658,20.25098,218.92,218.8,11.4259]
[1731759158858,0.09367462,218.91,218.8,11.4259]
[1731759159084,0.09367462,218.91,218.76,35.72832172]
[1731759159258,0.09367462,218.91,218.77,4.5709]
[1731759159661,20.25098,218.92,218.77,15.9984]
[1731759159662,20.12549,218.92,218.77,15.9984]
[1731759159912,23.776884,218.98,218.87,35.72832172]
[1731759160090,2.53418,218.99,218.87,35.72832172]
[1731759160264,0.09367462,218.98,218.85,35.72832172]
[1731759160462,0.09367462,218.96,218.83,35.72832172]
[1731759161077,0.09367462,218.94,218.81,35.72832172]
[1731759161260,23.87055862,218.92,218.77,51.72672172]
[1731759161459,0.09367462,218.9,218.77,51.72672172]
[1731759161965,0.21916462,218.88,218.77,51.72672172]
[1731759162461,0.12549,218.91,218.81,35.72832172]
[1731759162771,2.53508,218.91,218.81,35.72832172]
[1731759162963,2.53508,218.91,218.78,23.776884]
[1731759162964,0.21916462,218.9,218.79,35.72832172]
[1731759163164,0.09367462,218.88,218.77,51.72672172]
[1731759163355,0.21916462,218.88,218.78,20.0]
[1731759163779,2.2844,218.87,218.78,20.0]
[1731759164562,0.21916462,218.86,218.77,11.4275]
[1731759165181,2.2844,218.87,218.72,12.3599]
[1731759165182,0.21916462,218.84,218.72,4.5718]
[1731759165367,0.21916462,218.82,218.72,4.5718]
[1731759165568,0.21916462,218.82,218.71,11.4302]
[1731759165885,0.09367462,218.8,218.71,11.4302]
[1731759166686,0.34465462,218.8,218.67,35.72832172]
[1731759166884,0.34465462,218.76,218.62,35.72832172]
[1731759167293,24.12153862,218.76,218.6,35.72832172]
[1731759167472,0.34465462,218.74,218.6,35.72832172]
[1731759167880,0.34465462,218.72,218.6,40.30282172]
[1731759168685,0.21916462,218.72,218.62,35.72832172]
[1731759168892,0.12549,218.77,218.66,35.72832172]
[1731759169094,0.12549,218.77,218.6,16.0109]
[1731759169095,2.2852,218.79,218.68,35.72832172]
[1731759169875,0.09367462,218.78,218.68,35.72832172]
[1731759170481,0.21916462,218.82,218.65,11.4337]
[1731759170691,0.09367462,218.8,218.66,55.72832172]
[1731759170889,0.12549,218.82,218.66,55.72832172]
[1731759170890,12.8054,218.86,218.71,20.0]
[1731759171184,2.2846,218.85,218.72,35.72832172]
[1731759171383,2.2846,218.85,218.74,35.72832172]
[1731759171589,2.2846,218.85,218.76,35.72832172]
[1731759171803,0.09367462,218.84,218.76,35.72832172]
[1731759172376,2.2845,218.87,218.78,35.72832172]
[1731759172686,0.09367462,218.86,218.76,35.72832172]
[1731759173188,2.2845,218.87,218.76,35.72832172]
[1731759173388,0.09367462,218.86,218.76,35.72832172]
[1731759174472,0.21916462,218.86,218.77,24.571]
[1731759174778,2.50376462,218.86,218.77,24.571]
[1731759175797,12.8054,218.94,218.85,20.0]
[1731759176103,12.2824,219.01,218.86,35.72832172]
[1731759176278,2.2831,219.0,218.88,35.72832172]
[1731759176596,0.09367462,218.99,218.88,35.72832172]
[1731759176795,0.09367462,218.99,218.82,35.72832172]
[1731759177177,20.09367462,218.99,218.83,20.0]
[1731759177883,0.09367462,218.95,218.83,20.0]
[1731759178689,0.09367462,218.93,218.79,24.5704]
[1731759178888,0.09367462,218.91,218.79,24.5704]
[1731759179281,0.09367462,218.91,218.79,4.5704]
[1731759179904,2.2841,218.9,218.82,35.72832172]
[1731759180791,2.2841,218.9,218.83,20.0]
[1731759181196,2.2841,218.9,218.81,4.57]
[1731759181397,2.2841,218.9,218.81,24.57]
[1731759181983,0.34465462,218.89,218.78,35.72832172]
[1731759182296,0.34465462,218.89,218.74,11.4289]
[1731759182297,24.12153862,218.89,218.74,11.4289]
[1731759182497,33.0309,218.9,218.74,11.4289]
[1731759182498,0.34465462,218.87,218.76,35.72832172]
[1731759182801,0.34465462,218.87,218.78,35.72832172]
[1731759183095,2.40909,218.95,218.82,40.29802172]
[1731759183299,0.12549,218.94,218.84,35.72832172]
[1731759183687,0.12549,218.94,218.85,20.0]
[1731759183688,0.09367462,218.93,218.85,20.0]
[1731759184192,0.09367462,218.91,218.84,35.72832172]
[1731759184394,0.21916462,218.91,218.84,35.72832172]
[1731759185101,0.21916462,218.91,218.83,20.0]
[1731759185602,0.21916462,218.91,218.83,24.5696]
[1731759185810,2.50316462,218.91,218.83,20.0]
[1731759186011,2.50316462,218.91,218.82,11.4249]
[1731759187899,2.2838,218.93,218.85,20.0]
[1731759188082,0.21916462,218.92,218.85,20.0]
[1731759188703,0.12549,218.91,218.79,4.5705]
[1731759188888,0.21916462,218.9,218.72,35.72832172]
[1731759189090,0.09367462,218.86,218.72,35.72832172]
[1731759189400,0.12549,218.85,218.74,35.72832172]
[1731759189703,2.2847,218.84,218.75,4.5714]
[1731759190196,2.2847,218.84,218.75,24.5714]
[1731759190591,2.2847,218.84,218.75,35.9999]
[1731759191197,12.3596,218.88,218.75,35.9999]
[1731759191404,14.6439,218.88,218.79,20.0]
[1731759192007,20.09367462,218.87,218.76,40.29942172]
[1731759192307,20.09367462,218.87,218.76,24.5711]
[1731759192612,0.25098,218.86,218.76,24.5711]
[1731759192781,0.25098,218.86,218.74,35.72832172]
[1731759192782,0.09367462,218.83,218.73,20.0]
[1731759192981,0.21916462,218.83,218.7,51.73142172]
[1731759193183,0.21916462,218.79,218.7,11.4308]
[1731759193581,0.25098,218.84,218.7,51.73152172]
[1731759193781,0.09367462,218.81,218.68,35.72832172]
[1731759193981,0.09367462,218.81,218.58,31.9597]
[1731759193982,20.09367462,218.79,218.65,11.4334]
[1731759194205,20.09367462,218.75,218.6,51.73902172]
[1731759194407,24.027864,218.76,218.6,51.73902172]
[1731759194408,0.12549,218.7,218.6,51.73902172]
[1731759195406,2.41169,218.7,218.6,51.73902172]
[1731759195579,2.41169,218.7,218.61,20.0]
[1731759195900,0.09367462,218.67,218.59,0.5269639]
[1731759196109,0.21916462,218.65,218.59,0.5269639]
[1731759196282,0.12549,218.62,218.59,0.5269639]
[1731759198103,2.2871,218.61,218.59,0.5269639]
[1731759198608,0.25098,218.62,218.59,0.5269639]
[1731759199005,2.53808,218.62,218.59,0.5269639]
[1731759199384,2.2864,218.68,218.59,0.5269639]
[1731759199916,12.3596,218.74,218.63,35.72832172]
[1731759200203,14.6454,218.74,218.64,20.0]
[1731759200409,12.3596,218.74,218.66,20.0]
[1731759200710,12.5777,218.81,218.69,35.72832172]
[1731759201002,5.7115,218.86,218.77,35.72832172]
[1731759201003,2.2845,218.86,218.77,35.72832172]
[1731759201208,2.284,218.91,218.8,20.0]
[1731759202205,2.284,218.91,218.78,24.5707]
[1731759202986,0.09367462,218.89,218.78,24.5707]
[1731759203198,0.25098,218.88,218.79,35.72832172]
[1731759203407,0.25098,218.88,218.8,20.0]
[1731759203607,20.09367462,218.87,218.73,20.0]
[1731759203796,0.21916462,218.83,218.72,16.0017]
[1731759203982,0.21916462,218.81,218.72,16.0017]
[1731759204197,0.12549,218.8,218.72,11.4297]
[1731759204402,0.25098,218.78,218.66,16.0062]
[1731759204608,0.21916462,218.77,218.66,16.0062]
[1731759204945,0.12549,218.72,218.63,4.5737]
[1731759205222,0.25098,218.72,218.63,4.5737]
[1731759205405,2.63075462,218.71,218.61,4.5743]
[1731759205613,2.63075462,218.71,218.6,11.436]
[1731759205792,2.63075462,218.71,218.6,16.0105]
[1731759206193,2.63075462,218.71,218.59,0.5269639]
[1731759207689,0.09367462,218.69,218.59,0.5269639]
[1731759207891,20.34465462,218.67,218.59,0.5269639]
[1731759208091,20.34465462,218.65,218.59,0.5269639]
[1731759208308,23.776884,218.62,218.59,0.5269639]
[1731759208615,20.34465462,218.61,218.59,0.5269639]
[1731759209794,2.63185462,218.6,218.59,0.5269639]
[1731759211016,26.40873862,218.6,218.59,0.5269639]
[1731759211218,26.40873862,218.6,218.37,12.8325639]
[1731759211219,0.09367462,218.55,218.4,11.4464]
[1731759211528,0.09367462,218.53,218.4,11.4464]
[1731759211723,0.34465462,218.51,218.4,16.0251]
[1731759211894,2.2863,218.69,218.49,35.72832172]
[1731759212100,2.41359,218.68,218.51,35.72832172]
[1731759212315,2.41359,218.68,218.42,70.0]
[1731759212316,2.51359,218.68,218.49,35.72832172]
[1731759212599,0.09367462,218.67,218.49,35.72832172]
[1731759213015,0.09367462,218.67,218.42,70.0]
[1731759213016,0.09367462,218.65,218.47,35.72832172]
[1731759213198,0.21916462,218.63,218.47,40.30542172]
[1731759213398,23.902374,218.61,218.47,40.30542172]
[1731759213609,0.34465462,218.59,218.47,40.30542172]
[1731759214004,24.12153862,218.59,218.45,47.17222172]
[1731759214212,24.12153862,218.59,218.45,16.0216]
[1731759214621,24.12153862,218.59,218.45,51.74992172]
[1731759215308,24.12153862,218.57,218.45,51.74992172]
[1731759215826,24.12153862,218.57,218.45,16.0216]